[Event "*** Titled Tuesday Blitz"]
[Site "Chess.com"]
[Date "2020.05.12"]
[Round "2"]
[White "ezkybel"]
[Black "IMinTheWings"]
[Result "1-0"]
[WhiteElo "2509"]
[BlackElo "2197"]
[TimeControl "180+1"]
[EndTime "10:16:43 PDT"]
[Termination "ezkybel won by checkmate"]

1. e4 {[%clk 0:03:00.9]} 1... e6 {[%clk 0:02:58.4]} 2. d4 {[%clk 0:03:00.7]}
2... d5 {[%clk 0:02:59.3]} 3. c4 {[%clk 0:02:59.6]} 3... dxe4 {[%clk 0:02:58.1]}
4. Nc3 {[%clk 0:02:57]} 4... Nf6 {[%clk 0:02:57.8]} 5. f3 {[%clk 0:02:55.9]}
5... exf3 {[%clk 0:02:57.3]} 6. Nxf3 {[%clk 0:02:55.6]} 6... Bb4 {[%clk
0:02:49.3]} 7. Bd3 {[%clk 0:02:54.8]} 7... Nc6 {[%clk 0:02:46.6]} 8. a3 {[%clk
0:02:54.5]} 8... Bxc3+ {[%clk 0:02:43.9]} 9. bxc3 {[%clk 0:02:54.4]} 9... h6
{[%clk 0:02:42.4]} 10. O-O {[%clk 0:02:54.7]} 10... O-O {[%clk 0:02:41.9]} 11.
Qe2 {[%clk 0:02:54.1]} 11... b6 {[%clk 0:02:25.6]} 12. Bf4 {[%clk 0:02:47.7]}
12... Ba6 {[%clk 0:02:24.9]} 13. Qf2 {[%clk 0:02:43.5]} 13... Na5 {[%clk
0:02:12.4]} 14. Ne5 {[%clk 0:02:43]} 14... Nd7 {[%clk 0:02:08.1]} 15. Qe2 {[%clk
0:02:32.7]} 15... Nxe5 {[%clk 0:02:01.3]} 16. Bxe5 {[%clk 0:02:31.8]} 16... f5
{[%clk 0:01:58.3]} 17. Rf3 {[%clk 0:02:30.7]} 17... Qd7 {[%clk 0:01:58.1]} 18.
Rg3 {[%clk 0:02:29.8]} 18... Rf7 {[%clk 0:01:58.2]} 19. Rd1 {[%clk 0:02:28.3]}
19... Rd8 {[%clk 0:01:54.3]} 20. Rg6 {[%clk 0:02:26.9]} 20... Kh7 {[%clk
0:01:52.9]} 21. Qh5 {[%clk 0:02:24.4]} 21... Rff8 {[%clk 0:01:04.2]} 22. Rxg7+
{[%clk 0:02:07.3]} 22... Qxg7 {[%clk 0:01:04.2]} 23. Bxg7 {[%clk 0:02:07.3]}
23... Kxg7 {[%clk 0:01:05.1]} 24. Qe2 {[%clk 0:02:00]} 24... Rd6 {[%clk
0:00:46.8]} 25. c5 {[%clk 0:01:57.9]} 25... Bxd3 {[%clk 0:00:46.3]} 26. Rxd3
{[%clk 0:01:55.8]} 26... bxc5 {[%clk 0:00:40.7]} 27. Rg3+ {[%clk 0:01:47.7]}
27... Kf7 {[%clk 0:00:28.8]} 28. Qe5 {[%clk 0:01:46.4]} 28... Ke8 {[%clk
0:00:28.8]} 29. Qxc5 {[%clk 0:01:38.2]} 29... Nc6 {[%clk 0:00:24.7]} 30. Rg7
{[%clk 0:01:36.4]} 30... Kd8 {[%clk 0:00:23.2]} 31. Qb5 {[%clk 0:01:35.4]} 31...
f4 {[%clk 0:00:20.5]} 32. Qb7 {[%clk 0:01:34.7]} 32... Ne7 {[%clk 0:00:14.3]}
33. Qb8+ {[%clk 0:01:32]} 33... Nc8 {[%clk 0:00:10.7]} 34. Qxc7+ {[%clk
0:01:30.6]} 34... Ke8 {[%clk 0:00:11.6]} 35. Qxc8+ {[%clk 0:01:29.6]} 35... Rd8
{[%clk 0:00:12.1]} 36. Qxe6# {[%clk 0:01:29.8]} 1-0

[Event "*** Titled Tuesday Blitz"]
[Site "Chess.com"]
[Date "2020.05.12"]
[Round "2"]
[White "alishersuleymenov"]
[Black "Artem_Sadovsky"]
[Result "1-0"]
[WhiteElo "2835"]
[BlackElo "2534"]
[TimeControl "180+1"]
[EndTime "10:16:48 PDT"]
[Termination "alishersuleymenov won on time"]

1. d4 {[%clk 0:03:00.9]} 1... d5 {[%clk 0:02:55.1]} 2. Bf4 {[%clk 0:03:00.5]}
2... Nf6 {[%clk 0:02:52.6]} 3. e3 {[%clk 0:03:00.4]} 3... c5 {[%clk 0:02:50.7]}
4. c3 {[%clk 0:03:00.4]} 4... Nbd7 {[%clk 0:02:40.5]} 5. h3 {[%clk 0:02:56.2]}
5... b6 {[%clk 0:02:35.5]} 6. Nd2 {[%clk 0:02:55.6]} 6... e6 {[%clk 0:02:33.8]}
7. Ngf3 {[%clk 0:02:55.9]} 7... Be7 {[%clk 0:02:34]} 8. Bd3 {[%clk 0:02:55.9]}
8... O-O {[%clk 0:02:34.6]} 9. O-O {[%clk 0:02:53.9]} 9... Bb7 {[%clk
0:02:28.7]} 10. Qe2 {[%clk 0:02:52.8]} 10... Re8 {[%clk 0:02:24.5]} 11. Ne5
{[%clk 0:02:47.9]} 11... Ne4 {[%clk 0:02:14]} 12. Nxe4 {[%clk 0:02:42.1]} 12...
dxe4 {[%clk 0:02:14]} 13. Bb5 {[%clk 0:02:41.8]} 13... Nxe5 {[%clk 0:02:03]} 14.
Bxe8 {[%clk 0:02:30.2]} 14... Nd3 {[%clk 0:02:01]} 15. Bb5 {[%clk 0:02:30.3]}
15... Nxf4 {[%clk 0:01:52.5]} 16. exf4 {[%clk 0:02:31.2]} 16... cxd4 {[%clk
0:01:53.3]} 17. cxd4 {[%clk 0:02:31.6]} 17... Qxd4 {[%clk 0:01:53.4]} 18. Rad1
{[%clk 0:02:31.7]} 18... Qf6 {[%clk 0:01:42]} 19. Rd7 {[%clk 0:02:24]} 19... Bd5
{[%clk 0:01:34]} 20. Bc4 {[%clk 0:02:23.4]} 20... Re8 {[%clk 0:00:54.4]} 21.
Bxd5 {[%clk 0:02:18.5]} 21... exd5 {[%clk 0:00:55.3]} 22. Rxd5 {[%clk
0:02:19.4]} 22... Qxf4 {[%clk 0:00:55.6]} 23. g3 {[%clk 0:02:16]} 23... Qb8
{[%clk 0:00:33.9]} 24. Qxe4 {[%clk 0:02:13.5]} 24... Bc5 {[%clk 0:00:33.8]} 25.
Qf3 {[%clk 0:02:13.7]} 25... Qb7 {[%clk 0:00:24.7]} 26. Rfd1 {[%clk 0:02:11.9]}
26... Qe7 {[%clk 0:00:23.8]} 27. Rd7 {[%clk 0:02:07.6]} 27... Qe6 {[%clk
0:00:24.2]} 28. Rxa7 {[%clk 0:02:07.1]} 28... Rf8 {[%clk 0:00:18.1]} 29. Kg2
{[%clk 0:02:01.9]} 29... b5 {[%clk 0:00:15.1]} 30. Rc7 {[%clk 0:02:01.8]} 30...
Bb4 {[%clk 0:00:04]} 31. a3 {[%clk 0:02:00.2]} 31... Ba5 {[%clk 0:00:04]} 32.
Rc6 {[%clk 0:02:00.4]} 32... Qa2 {[%clk 0:00:04]} 33. b4 {[%clk 0:01:52.8]}
33... Bd8 {[%clk 0:00:04.5]} 34. Rc8 {[%clk 0:01:50.9]} 34... Bf6 {[%clk
0:00:01.5]} 35. Rxf8+ {[%clk 0:01:51.8]} 35... Kxf8 {[%clk 0:00:01.5]} 36. Qa8+
{[%clk 0:01:50.2]} 36... Ke7 {[%clk 0:00:02]} 37. Qd8+ {[%clk 0:01:49.7]} 37...
Ke6 {[%clk 0:00:02.5]} 38. Qd7+ {[%clk 0:01:49.7]} 38... Ke5 {[%clk 0:00:02.4]}
39. Re1+ {[%clk 0:01:49.8]} 1-0

[Event "*** Titled Tuesday Blitz"]
[Site "Chess.com"]
[Date "2020.05.12"]
[Round "2"]
[White "Efremov_Vlad"]
[Black "wild_cat99"]
[Result "0-1"]
[WhiteElo "2134"]
[BlackElo "2591"]
[TimeControl "180+1"]
[EndTime "10:16:48 PDT"]
[Termination "wild_cat99 won by resignation"]

1. c4 {[%clk 0:03:00.9]} 1... Nf6 {[%clk 0:02:59]} 2. d4 {[%clk 0:02:58.8]} 2...
g6 {[%clk 0:02:58.4]} 3. Nf3 {[%clk 0:02:58.5]} 3... Bg7 {[%clk 0:02:58.6]} 4.
g3 {[%clk 0:02:58.7]} 4... O-O {[%clk 0:02:59]} 5. Bg2 {[%clk 0:02:58.7]} 5...
d5 {[%clk 0:02:59.6]} 6. cxd5 {[%clk 0:02:57.7]} 6... Nxd5 {[%clk 0:03:00.5]} 7.
O-O {[%clk 0:02:57.6]} 7... Nb6 {[%clk 0:03:01]} 8. e3 {[%clk 0:02:57.3]} 8...
Nc6 {[%clk 0:03:01.2]} 9. Nc3 {[%clk 0:02:57.4]} 9... Re8 {[%clk 0:02:55.7]} 10.
a3 {[%clk 0:02:55.9]} 10... e5 {[%clk 0:02:55.7]} 11. d5 {[%clk 0:02:51.7]}
11... Ne7 {[%clk 0:02:54.8]} 12. e4 {[%clk 0:02:43.1]} 12... Bg4 {[%clk
0:02:52.7]} 13. h3 {[%clk 0:02:20.9]} 13... Bxf3 {[%clk 0:02:52.4]} 14. Bxf3
{[%clk 0:02:21.6]} 14... c6 {[%clk 0:02:52.2]} 15. dxc6 {[%clk 0:02:04.4]} 15...
Nxc6 {[%clk 0:02:53.1]} 16. Be3 {[%clk 0:02:03.9]} 16... Nc4 {[%clk 0:02:46.7]}
17. Nd5 {[%clk 0:01:54.1]} 17... Nxe3 {[%clk 0:02:45.1]} 18. Nxe3 {[%clk
0:01:53.6]} 18... Nd4 {[%clk 0:02:45]} 19. Bg2 {[%clk 0:01:53.6]} 19... Rc8
{[%clk 0:02:37.1]} 20. Nd5 {[%clk 0:01:47.2]} 20... Qa5 {[%clk 0:02:26.3]} 21.
b4 {[%clk 0:01:39.9]} 21... Qa6 {[%clk 0:02:22.4]} 22. Kh2 {[%clk 0:01:26.6]}
22... Qd6 {[%clk 0:02:09.2]} 23. Rc1 {[%clk 0:01:22.8]} 23... h5 {[%clk
0:02:05.6]} 24. h4 {[%clk 0:01:20.2]} 24... Qd7 {[%clk 0:02:03.8]} 25. Bh3
{[%clk 0:01:02.4]} 25... f5 {[%clk 0:02:03]} 26. Ne3 {[%clk 0:00:51.3]} 26...
Qf7 {[%clk 0:02:01.3]} 27. exf5 {[%clk 0:00:50.2]} 27... gxf5 {[%clk 0:01:59.5]}
28. Bg2 {[%clk 0:00:41.3]} 28... Rcd8 {[%clk 0:01:57.4]} 29. Qa4 {[%clk
0:00:21.2]} 29... f4 {[%clk 0:01:54.8]} 30. Bd5 {[%clk 0:00:19.6]} 30... Rxd5
{[%clk 0:01:53.1]} 31. Nxd5 {[%clk 0:00:19.8]} 31... b5 {[%clk 0:01:49.1]} 32.
Qd1 {[%clk 0:00:07.6]} 32... Qxd5 {[%clk 0:01:46.7]} 33. Qxh5 {[%clk 0:00:08.3]}
33... Nf3+ {[%clk 0:01:46.4]} 34. Kh3 {[%clk 0:00:08.9]} 34... Qe6+ {[%clk
0:01:40.7]} 35. Kg2 {[%clk 0:00:08.1]} 35... e4 {[%clk 0:01:40]} 36. Rfe1 {[%clk
0:00:07.3]} 36... Nxe1+ {[%clk 0:01:38.3]} 37. Rxe1 {[%clk 0:00:07.1]} 37... f3+
{[%clk 0:01:39.2]} 38. Kg1 {[%clk 0:00:07]} 38... Qh3 {[%clk 0:01:38.7]} 0-1

[Event "*** Titled Tuesday Blitz"]
[Site "Chess.com"]
[Date "2020.05.12"]
[Round "2"]
[White "TST2014"]
[Black "BilodeauA"]
[Result "1-0"]
[WhiteElo "2570"]
[BlackElo "2875"]
[TimeControl "180+1"]
[EndTime "10:16:55 PDT"]
[Termination "TST2014 won by resignation"]

1. d4 {[%clk 0:03:00.9]} 1... d5 {[%clk 0:02:55.6]} 2. c4 {[%clk 0:02:58.9]}
2... dxc4 {[%clk 0:02:56.5]} 3. e3 {[%clk 0:02:57.7]} 3... e5 {[%clk 0:02:51.7]}
4. Bxc4 {[%clk 0:02:55.2]} 4... Nc6 {[%clk 0:02:51.9]} 5. Nf3 {[%clk 0:02:55.1]}
5... e4 {[%clk 0:02:51.8]} 6. Nfd2 {[%clk 0:02:55.3]} 6... Qg5 {[%clk
0:02:52.4]} 7. Nxe4 {[%clk 0:02:55.7]} 7... Qxg2 {[%clk 0:02:52.5]} 8. Ng3
{[%clk 0:02:55.9]} 8... Nf6 {[%clk 0:02:52.8]} 9. Bf1 {[%clk 0:02:48.6]} 9...
Qd5 {[%clk 0:02:51.9]} 10. Nc3 {[%clk 0:02:48.8]} 10... Qd8 {[%clk 0:02:52.3]}
11. Bg2 {[%clk 0:02:47.9]} 11... Bd6 {[%clk 0:02:51.4]} 12. Qc2 {[%clk
0:02:31.4]} 12... O-O {[%clk 0:02:50.4]} 13. Bd2 {[%clk 0:02:28]} 13... Nb4
{[%clk 0:02:43.8]} 14. Qb1 {[%clk 0:02:25.9]} 14... Re8 {[%clk 0:02:44]} 15. a3
{[%clk 0:02:25.2]} 15... Nc6 {[%clk 0:02:43.7]} 16. O-O {[%clk 0:02:21.4]} 16...
Ng4 {[%clk 0:02:26.9]} 17. Nce4 {[%clk 0:02:12.2]} 17... Qh4 {[%clk 0:02:12.8]}
18. h3 {[%clk 0:02:08.3]} 18... Nxf2 {[%clk 0:02:13.2]} 19. Rxf2 {[%clk
0:01:45.6]} 19... Bxg3 {[%clk 0:02:12.3]} 20. Nxg3 {[%clk 0:01:42.4]} 20... Qxg3
{[%clk 0:02:13.2]} 21. Rf3 {[%clk 0:01:37.7]} 21... Qg6 {[%clk 0:02:12.9]} 22.
Qf1 {[%clk 0:01:34.4]} 22... Be6 {[%clk 0:02:09.5]} 23. Qf2 {[%clk 0:01:32.5]}
23... Bd5 {[%clk 0:01:53.1]} 24. Rg3 {[%clk 0:01:30.4]} 24... Qd6 {[%clk
0:01:52.7]} 25. Rf1 {[%clk 0:01:22.8]} 25... g6 {[%clk 0:01:17.7]} 26. Bc3
{[%clk 0:01:20.5]} 26... Re7 {[%clk 0:01:02.8]} 27. e4 {[%clk 0:01:16.3]} 27...
Bxe4 {[%clk 0:01:02.6]} 28. Bxe4 {[%clk 0:01:15.2]} 28... Rxe4 {[%clk
0:01:03.4]} 29. Qxf7+ {[%clk 0:01:15]} 29... Kh8 {[%clk 0:01:04]} 30. d5+ {[%clk
0:01:14.8]} 30... Ne5 {[%clk 0:00:55.2]} 31. Rg5 {[%clk 0:00:48.4]} 31... Qxd5
{[%clk 0:00:42.4]} 1-0

[Event "*** Titled Tuesday Blitz"]
[Site "Chess.com"]
[Date "2020.05.12"]
[Round "2"]
[White "Rud_Makarian"]
[Black "ZarinaShafigullina"]
[Result "1-0"]
[WhiteElo "2628"]
[BlackElo "2313"]
[TimeControl "180+1"]
[EndTime "10:16:55 PDT"]
[Termination "Rud_Makarian won by resignation"]

1. d3 {[%clk 0:03:00.9]} 1... d5 {[%clk 0:02:58.6]} 2. f4 {[%clk 0:02:57.6]}
2... c5 {[%clk 0:02:57.6]} 3. Nf3 {[%clk 0:02:58]} 3... Nc6 {[%clk 0:02:57.4]}
4. g3 {[%clk 0:02:58.5]} 4... Nf6 {[%clk 0:02:57.2]} 5. Bg2 {[%clk 0:02:59]}
5... e6 {[%clk 0:02:55.7]} 6. O-O {[%clk 0:02:59.4]} 6... Bd6 {[%clk 0:02:55.6]}
7. Nc3 {[%clk 0:02:59.7]} 7... O-O {[%clk 0:02:55.6]} 8. e4 {[%clk 0:02:59.6]}
8... Bb8 {[%clk 0:02:53.3]} 9. e5 {[%clk 0:02:59.2]} 9... Nd7 {[%clk 0:02:52.9]}
10. Ne2 {[%clk 0:02:59]} 10... b6 {[%clk 0:02:49.8]} 11. g4 {[%clk 0:02:58.5]}
11... Bb7 {[%clk 0:02:45.9]} 12. Ng3 {[%clk 0:02:58.6]} 12... f6 {[%clk
0:02:38.7]} 13. exf6 {[%clk 0:02:57.6]} 13... Nxf6 {[%clk 0:02:37.5]} 14. Ng5
{[%clk 0:02:46.4]} 14... Bc8 {[%clk 0:02:30.7]} 15. Re1 {[%clk 0:02:30.4]} 15...
Qd6 {[%clk 0:02:21.8]} 16. h3 {[%clk 0:02:13.1]} 16... Nd4 {[%clk 0:02:19.3]}
17. c3 {[%clk 0:02:11.7]} 17... Nc6 {[%clk 0:02:14.5]} 18. Qe2 {[%clk
0:02:09.9]} 18... Re8 {[%clk 0:02:13.1]} 19. Nf3 {[%clk 0:02:07.4]} 19... Qc7
{[%clk 0:01:56.4]} 20. Ne5 {[%clk 0:02:04.3]} 20... Nxe5 {[%clk 0:01:54.6]} 21.
fxe5 {[%clk 0:02:04.7]} 21... Nd7 {[%clk 0:01:54.5]} 22. d4 {[%clk 0:02:03.9]}
22... cxd4 {[%clk 0:01:52.6]} 23. cxd4 {[%clk 0:02:04.8]} 23... a5 {[%clk
0:01:48.2]} 24. Bg5 {[%clk 0:01:52.8]} 24... Ba6 {[%clk 0:01:46.8]} 25. Qd2
{[%clk 0:01:52.6]} 25... b5 {[%clk 0:01:46.7]} 26. Kh2 {[%clk 0:01:45.5]} 26...
Ba7 {[%clk 0:01:46]} 27. Nh5 {[%clk 0:01:33.4]} 27... Nb6 {[%clk 0:01:44.3]} 28.
b3 {[%clk 0:01:24.8]} 28... Nc8 {[%clk 0:01:30.8]} 29. Rac1 {[%clk 0:01:18.6]}
29... Qb6 {[%clk 0:01:29.4]} 30. Nxg7 {[%clk 0:01:17.5]} 30... Kxg7 {[%clk
0:01:25.8]} 31. Bf6+ {[%clk 0:01:17.7]} 31... Kf7 {[%clk 0:01:16.9]} 32. Qh6
{[%clk 0:01:17.7]} 32... Rf8 {[%clk 0:01:15.8]} 33. Rc7+ {[%clk 0:00:57.3]} 1-0

[Event "*** Titled Tuesday Blitz"]
[Site "Chess.com"]
[Date "2020.05.12"]
[Round "2"]
[White "WiktoriaPOL"]
[Black "sopo-tereladze"]
[Result "0-1"]
[WhiteElo "2020"]
[BlackElo "2382"]
[TimeControl "180+1"]
[EndTime "10:16:55 PDT"]
[Termination "sopo-tereladze won on time"]

1. c4 {[%clk 0:03:00.9]} 1... Nf6 {[%clk 0:02:58.9]} 2. Nc3 {[%clk 0:03:00.6]}
2... e6 {[%clk 0:02:58.2]} 3. e4 {[%clk 0:02:59.7]} 3... d5 {[%clk 0:02:56.4]}
4. e5 {[%clk 0:02:59.1]} 4... d4 {[%clk 0:02:54.5]} 5. exf6 {[%clk 0:02:58.6]}
5... dxc3 {[%clk 0:02:53.7]} 6. bxc3 {[%clk 0:02:56.8]} 6... Qxf6 {[%clk
0:02:49.8]} 7. Nf3 {[%clk 0:02:57]} 7... Nc6 {[%clk 0:02:46.5]} 8. d4 {[%clk
0:02:55.5]} 8... h6 {[%clk 0:02:46.6]} 9. Bd3 {[%clk 0:02:48.9]} 9... Bd6 {[%clk
0:02:40.8]} 10. O-O {[%clk 0:02:41]} 10... O-O {[%clk 0:02:40.7]} 11. Nd2 {[%clk
0:02:26.9]} 11... Qe7 {[%clk 0:02:29.6]} 12. Ne4 {[%clk 0:02:07.4]} 12... f5
{[%clk 0:02:25.1]} 13. Nxd6 {[%clk 0:01:59.3]} 13... cxd6 {[%clk 0:02:26]} 14.
Ba3 {[%clk 0:01:56]} 14... Qc7 {[%clk 0:02:21.1]} 15. Re1 {[%clk 0:01:52.2]}
15... Bd7 {[%clk 0:02:15.7]} 16. Qf3 {[%clk 0:01:29.5]} 16... Rae8 {[%clk
0:02:09.4]} 17. Qg3 {[%clk 0:01:25.4]} 17... e5 {[%clk 0:02:01.5]} 18. d5 {[%clk
0:01:20.2]} 18... Nd8 {[%clk 0:01:56.1]} 19. h4 {[%clk 0:01:12.8]} 19... Nf7
{[%clk 0:01:50.1]} 20. f3 {[%clk 0:00:52.5]} 20... b6 {[%clk 0:01:46.2]} 21.
Rad1 {[%clk 0:00:34.2]} 21... Bc8 {[%clk 0:01:40]} 22. h5 {[%clk 0:00:11.7]}
22... Qe7 {[%clk 0:01:34.8]} 23. Qf2 {[%clk 0:00:09]} 23... Qg5 {[%clk
0:01:27.7]} 24. g4 {[%clk 0:00:04.7]} 24... fxg4 {[%clk 0:01:24.9]} 25. fxg4
{[%clk 0:00:04.6]} 25... Bxg4 {[%clk 0:01:20.1]} 26. Qg2 {[%clk 0:00:01.7]}
26... Bxd1 {[%clk 0:01:15.6]} 0-1

[Event "*** Titled Tuesday Blitz"]
[Site "Chess.com"]
[Date "2020.05.12"]
[Round "2"]
[White "LuckSlayeer"]
[Black "Blitzking642"]
[Result "1-0"]
[WhiteElo "2497"]
[BlackElo "2269"]
[TimeControl "180+1"]
[EndTime "10:16:59 PDT"]
[Termination "LuckSlayeer won by resignation"]

1. Nf3 {[%clk 0:03:00.9]} 1... c5 {[%clk 0:02:59.8]} 2. c4 {[%clk 0:03:00.8]}
2... Nc6 {[%clk 0:02:59.5]} 3. Nc3 {[%clk 0:03:01.1]} 3... g6 {[%clk 0:02:59.5]}
4. e3 {[%clk 0:03:01.5]} 4... Bg7 {[%clk 0:02:58]} 5. d4 {[%clk 0:03:02.1]} 5...
d6 {[%clk 0:02:57.5]} 6. d5 {[%clk 0:03:00.1]} 6... Na5 {[%clk 0:02:57]} 7. Be2
{[%clk 0:02:54.3]} 7... e5 {[%clk 0:02:55.3]} 8. dxe6 {[%clk 0:02:36.4]} 8...
Bxe6 {[%clk 0:02:52.6]} 9. Nb5 {[%clk 0:02:20.8]} 9... Bf8 {[%clk 0:02:33.5]}
10. Qa4 {[%clk 0:01:47.6]} 10... Nc6 {[%clk 0:02:29.3]} 11. O-O {[%clk
0:01:39.2]} 11... a6 {[%clk 0:02:26.6]} 12. Nc3 {[%clk 0:01:38.5]} 12... Bg7
{[%clk 0:02:23.6]} 13. Rd1 {[%clk 0:01:36.2]} 13... Nf6 {[%clk 0:02:10.3]} 14.
e4 {[%clk 0:01:27.4]} 14... Qc7 {[%clk 0:02:00.7]} 15. Nb5 {[%clk 0:01:15.7]}
15... Qa5 {[%clk 0:01:52.1]} 16. Qxa5 {[%clk 0:00:59.8]} 16... Nxa5 {[%clk
0:01:50.4]} 17. Nc7+ {[%clk 0:00:56.8]} 17... Ke7 {[%clk 0:01:46.7]} 18. Nxa8
{[%clk 0:00:56.1]} 18... Rxa8 {[%clk 0:01:46.2]} 19. Bd2 {[%clk 0:00:38]} 19...
Nxc4 {[%clk 0:01:43.3]} 20. Bc3 {[%clk 0:00:31.5]} 20... Bh8 {[%clk 0:01:30]}
21. Bxc4 {[%clk 0:00:24.9]} 21... Bxc4 {[%clk 0:01:28.6]} 22. e5 {[%clk
0:00:25.4]} 22... dxe5 {[%clk 0:01:25.2]} 23. Nxe5 {[%clk 0:00:26.3]} 23... Be6
{[%clk 0:01:24.2]} 24. f3 {[%clk 0:00:16.2]} 24... Nd5 {[%clk 0:01:22.6]} 25.
Re1 {[%clk 0:00:05.6]} 25... Nxc3 {[%clk 0:01:16]} 26. bxc3 {[%clk 0:00:06.5]}
26... Rd8 {[%clk 0:01:14.4]} 27. Rab1 {[%clk 0:00:06.6]} 27... b5 {[%clk
0:01:13.9]} 28. Nc6+ {[%clk 0:00:06.3]} 1-0

[Event "*** Titled Tuesday Blitz"]
[Site "Chess.com"]
[Date "2020.05.12"]
[Round "2"]
[White "Savva09022009"]
[Black "Shushik"]
[Result "1-0"]
[WhiteElo "2392"]
[BlackElo "2076"]
[TimeControl "180+1"]
[EndTime "10:17:00 PDT"]
[Termination "Savva09022009 won by resignation"]

1. d4 {[%clk 0:03:00.9]} 1... d5 {[%clk 0:02:59.8]} 2. Nc3 {[%clk 0:03:00.9]}
2... Nf6 {[%clk 0:02:59.6]} 3. Bf4 {[%clk 0:03:00.3]} 3... c5 {[%clk 0:02:58.2]}
4. e3 {[%clk 0:02:59.8]} 4... Bf5 {[%clk 0:02:51.4]} 5. f3 {[%clk 0:02:54.7]}
5... e6 {[%clk 0:02:49.5]} 6. g4 {[%clk 0:02:54.5]} 6... Bg6 {[%clk 0:02:47.2]}
7. h4 {[%clk 0:02:54.2]} 7... h6 {[%clk 0:02:46.1]} 8. Bd3 {[%clk 0:02:49.7]}
8... Bxd3 {[%clk 0:02:44.3]} 9. Qxd3 {[%clk 0:02:50.2]} 9... Be7 {[%clk
0:02:35.8]} 10. Nge2 {[%clk 0:02:46.9]} 10... Nc6 {[%clk 0:02:27.1]} 11. O-O-O
{[%clk 0:02:37.1]} 11... c4 {[%clk 0:02:14.8]} 12. Qd2 {[%clk 0:02:35.6]} 12...
Qa5 {[%clk 0:02:05.2]} 13. g5 {[%clk 0:02:33.1]} 13... Nh5 {[%clk 0:01:47.1]}
14. e4 {[%clk 0:02:28.4]} 14... O-O-O {[%clk 0:01:37.2]} 15. exd5 {[%clk
0:02:13]} 15... exd5 {[%clk 0:01:34.1]} 16. Kb1 {[%clk 0:02:05.1]} 16... Nxf4
{[%clk 0:01:13.7]} 17. Qxf4 {[%clk 0:01:53.5]} 17... Qc7 {[%clk 0:01:06.6]} 18.
Qxf7 {[%clk 0:01:40.7]} 18... hxg5 {[%clk 0:00:45.4]} 19. hxg5 {[%clk
0:01:35.1]} 19... Rhf8 {[%clk 0:00:42.1]} 20. Qe6+ {[%clk 0:01:33.5]} 20... Kb8
{[%clk 0:00:40.9]} 21. Nxd5 {[%clk 0:01:31.1]} 21... Qd7 {[%clk 0:00:39.9]} 22.
Qxd7 {[%clk 0:01:22.5]} 22... Rxd7 {[%clk 0:00:39.8]} 23. Nxe7 {[%clk
0:01:15.2]} 23... Rxe7 {[%clk 0:00:39.4]} 24. Nc3 {[%clk 0:01:13.9]} 24... Rd7
{[%clk 0:00:26.5]} 25. d5 {[%clk 0:01:12]} 25... Ne5 {[%clk 0:00:26.2]} 26. f4
{[%clk 0:01:02.9]} 26... Rxf4 {[%clk 0:00:20.7]} 27. Rh8+ {[%clk 0:01:02.7]}
27... Kc7 {[%clk 0:00:20]} 28. d6+ {[%clk 0:01:02.8]} 28... Kc6 {[%clk
0:00:19.7]} 29. Rc8+ {[%clk 0:01:01.2]} 29... Kb6 {[%clk 0:00:19.5]} 30. Nd5+
{[%clk 0:01:01.1]} 1-0

[Event "*** Titled Tuesday Blitz"]
[Site "Chess.com"]
[Date "2020.05.12"]
[Round "2"]
[White "Raja3401"]
[Black "RestartingChess"]
[Result "1-0"]
[WhiteElo "2772"]
[BlackElo "2512"]
[TimeControl "180+1"]
[EndTime "10:17:01 PDT"]
[Termination "Raja3401 won by resignation"]

1. e4 {[%clk 0:03:00.9]} 1... d5 {[%clk 0:03:00.6]} 2. exd5 {[%clk 0:02:58]}
2... Qxd5 {[%clk 0:03:01.5]} 3. Nc3 {[%clk 0:02:57.4]} 3... Qd6 {[%clk
0:03:02.4]} 4. d4 {[%clk 0:02:57.4]} 4... Nf6 {[%clk 0:03:02.9]} 5. Bd3 {[%clk
0:02:58]} 5... Nc6 {[%clk 0:03:02.2]} 6. Nge2 {[%clk 0:02:55.6]} 6... a6 {[%clk
0:03:02.2]} 7. Bf4 {[%clk 0:02:54.8]} 7... Qd8 {[%clk 0:03:01.3]} 8. Qd2 {[%clk
0:02:53.2]} 8... Bg4 {[%clk 0:03:01]} 9. f3 {[%clk 0:02:52.9]} 9... Bh5 {[%clk
0:03:01.2]} 10. O-O-O {[%clk 0:02:52.6]} 10... e6 {[%clk 0:03:01.4]} 11. g4
{[%clk 0:02:52.8]} 11... Bg6 {[%clk 0:03:01.7]} 12. h4 {[%clk 0:02:52.7]} 12...
Bb4 {[%clk 0:03:01.7]} 13. h5 {[%clk 0:02:50.2]} 13... Bxd3 {[%clk 0:03:01.6]}
14. Qxd3 {[%clk 0:02:51.1]} 14... Bd6 {[%clk 0:02:51.9]} 15. g5 {[%clk
0:02:31.4]} 15... Nd5 {[%clk 0:02:46.6]} 16. Nxd5 {[%clk 0:02:30]} 16... exd5
{[%clk 0:02:47.5]} 17. g6 {[%clk 0:02:26]} 17... Qf6 {[%clk 0:02:26.2]} 18. Bxd6
{[%clk 0:02:05.5]} 18... Qxd6 {[%clk 0:02:26.1]} 19. h6 {[%clk 0:01:40.9]} 19...
Qxg6 {[%clk 0:02:01.7]} 20. hxg7 {[%clk 0:01:33.1]} 20... Qxg7 {[%clk
0:01:55.9]} 21. Qe3+ {[%clk 0:01:33.5]} 21... Kd7 {[%clk 0:01:51.2]} 22. Qf4
{[%clk 0:01:26]} 22... Kc8 {[%clk 0:01:23.6]} 23. Rhg1 {[%clk 0:01:14.8]} 23...
Qf8 {[%clk 0:01:23.4]} 24. Qf5+ {[%clk 0:01:13.6]} 24... Kb8 {[%clk 0:01:23.1]}
25. Qxd5 {[%clk 0:01:11.8]} 25... Qe7 {[%clk 0:01:20.1]} 26. Nc3 {[%clk
0:01:10.9]} 26... Rd8 {[%clk 0:01:16.9]} 27. Qf5 {[%clk 0:01:11]} 27... Qe3+
{[%clk 0:01:16.6]} 28. Kb1 {[%clk 0:01:11.3]} 28... Rxd4 {[%clk 0:01:09.3]} 29.
Rde1 {[%clk 0:01:08.5]} 29... Rf4 {[%clk 0:00:43.4]} 30. Rg8+ {[%clk 0:01:02.4]}
30... Ka7 {[%clk 0:00:26.4]} 31. Rxa8+ {[%clk 0:01:03.3]} 31... Kb6 {[%clk
0:00:26.4]} 32. Na4+ {[%clk 0:00:56.3]} 32... Rxa4 {[%clk 0:00:23.4]} 33. Rxe3
{[%clk 0:00:56.1]} 33... Rc4 {[%clk 0:00:24.2]} 1-0